[Event "Titled Tuesday Blitz January 25 2022"]
[White "Perske, Thore"]
[Black "Belov, Vladimir"]
[WhiteFideId "12902195"]
[BlackFideId "4132394"]
[WhiteElo "2315"]
[BlackElo "2501"]
[Result "1/2-1/2"]
[Round "05"]
[TimeControl "180+1"]
[Date "2022.01.26"]
[WhiteClock "0:00:05"]
[BlackClock "0:00:07"]

1. e4 {[%clk 0:03:00]}  c6 {[%clk 0:02:59]} 2. d4 {[%clk 0:02:59]}  d5 {[%clk 0:02:59]} 3. e5 {[%clk 0:03:00]}  Bf5 {[%clk 0:02:59]} 4. Nf3 {[%clk 0:03:00]}  e6 {[%clk 0:02:59]} 5. Be2 {[%clk 0:02:59]}  Ne7 {[%clk 0:02:58]} 6. O-O {[%clk 0:02:59]}  Bg6 {[%clk 0:02:58]} 7. c3 {[%clk 0:02:58]}  Nf5 {[%clk 0:02:56]} 8. Nbd2 {[%clk 0:02:54]}  a6 {[%clk 0:02:49]} 9. a4 {[%clk 0:02:53]}  c5 {[%clk 0:02:45]} 10. dxc5 {[%clk 0:02:48]}  Bxc5 {[%clk 0:02:44]} 11. Nb3 {[%clk 0:02:46]}  Nd7 {[%clk 0:02:31]} 12. Nxc5 {[%clk 0:02:43]}  Nxc5 {[%clk 0:02:32]} 13. Nd4 {[%clk 0:02:38]}  O-O {[%clk 0:02:19]} 14. Nxf5 {[%clk 0:02:32]}  Bxf5 {[%clk 0:02:20]} 15. Be3 {[%clk 0:02:32]}  Rc8 {[%clk 0:02:18]} 16. a5 {[%clk 0:02:24]}  Qc7 {[%clk 0:02:08]} 17. Bd4 {[%clk 0:02:14]}  Nd7 {[%clk 0:02:07]} 18. f4 {[%clk 0:02:10]}  f6 {[%clk 0:01:30]} 19. exf6 {[%clk 0:02:08]}  Nxf6 {[%clk 0:01:31]} 20. Bxf6 {[%clk 0:01:45]}  Rxf6 {[%clk 0:01:30]} 21. Qd4 {[%clk 0:01:40]}  Be4 {[%clk 0:01:27]} 22. g3 {[%clk 0:01:36]}  Rcf8 {[%clk 0:01:24]} 23. Bd3 {[%clk 0:01:28]}  Bxd3 {[%clk 0:01:06]} 24. Qxd3 {[%clk 0:01:25]}  Rc8 {[%clk 0:00:48]} 25. Qd4 {[%clk 0:01:16]}  Qc4 {[%clk 0:00:46]} 26. Qxc4 {[%clk 0:01:11]}  Rxc4 {[%clk 0:00:46]} 27. Rfd1 {[%clk 0:00:51]}  Rf8 {[%clk 0:00:41]} 28. Ra3 {[%clk 0:00:44]}  Rfc8 {[%clk 0:00:24]} 29. Rb3 {[%clk 0:00:42]}  R8c7 {[%clk 0:00:25]} 30. Re1 {[%clk 0:00:40]}  Kf7 {[%clk 0:00:25]} 31. Kf2 {[%clk 0:00:28]}  R4c5 {[%clk 0:00:25]} 32. Rb6 {[%clk 0:00:24]}  R5c6 {[%clk 0:00:25]} 33. Rb4 {[%clk 0:00:21]}  Rc5 {[%clk 0:00:24]} 34. Rb6 {[%clk 0:00:21]}  R5c6 {[%clk 0:00:23]} 35. Rb4 {[%clk 0:00:22]}  h6 {[%clk 0:00:24]} 36. h4 {[%clk 0:00:20]}  h5 {[%clk 0:00:23]} 37. Re3 {[%clk 0:00:18]}  Kf6 {[%clk 0:00:23]} 38. Kf3 {[%clk 0:00:18]}  g6 {[%clk 0:00:24]} 39. Re5 {[%clk 0:00:17]}  Rc5 {[%clk 0:00:22]} 40. Rb6 {[%clk 0:00:13]}  Re7 {[%clk 0:00:18]} 41. Ke3 {[%clk 0:00:06]}  Rxa5 {[%clk 0:00:18]} 42. b4 {[%clk 0:00:05]}  Ra3 {[%clk 0:00:15]} 43. Kd3 {[%clk 0:00:03]}  Ra1 {[%clk 0:00:15]} 44. Kc2 {[%clk 0:00:02]}  Rg1 {[%clk 0:00:14]} 45. Re3 {[%clk 0:00:02]}  Rf1 {[%clk 0:00:12]} 46. Kd3 {[%clk 0:00:02]}  Rc1 {[%clk 0:00:12]} 47. Kd2 {[%clk 0:00:03]}  Rg1 {[%clk 0:00:11]} 48. Kd3 {[%clk 0:00:03]}  Kf5 {[%clk 0:00:10]} 49. Re5+ {[%clk 0:00:02]}  Kf6 {[%clk 0:00:11]} 50. Re3 {[%clk 0:00:03]}  Rb1 {[%clk 0:00:09]} 51. Kc2 {[%clk 0:00:03]}  Rh1 {[%clk 0:00:08]} 52. Kd3 {[%clk 0:00:03]}  Kf7 {[%clk 0:00:09]} 53. Kc2 {[%clk 0:00:03]}  Rg1 {[%clk 0:00:08]} 54. Kd3 {[%clk 0:00:04]}  Rf1 {[%clk 0:00:08]} 55. Kc2 {[%clk 0:00:04]}  Kf6 {[%clk 0:00:08]} 56. Kd3 {[%clk 0:00:04]}  Kf5 {[%clk 0:00:08]} 57. Re5+ {[%clk 0:00:05]}  Kf6 {[%clk 0:00:07]} 58. Re3 {[%clk 0:00:05]} 1/2-1/2


[Site "https://www.chess.com"]

[Event "Titled Tuesday Blitz January 25 2022"]
[White "Poliannikov, Danila"]
[Black "Obolenskikh, Dmitry"]
[WhiteFideId "30935245"]
[BlackFideId "4156013"]
[WhiteElo "2544"]
[BlackElo "2512"]
[Result "1-0"]
[Round "05"]
[TimeControl "180+1"]
[Date "2022.01.26"]
[WhiteClock "0:00:47"]
[BlackClock "0:00:37"]

1. Nf3 {[%clk 0:03:00]}  d6 {[%clk 0:02:57]} 2. c4 {[%clk 0:02:57]}  e5 {[%clk 0:02:55]} 3. Nc3 {[%clk 0:02:49]}  f5 {[%clk 0:02:54]} 4. d4 {[%clk 0:02:48]}  e4 {[%clk 0:02:54]} 5. Nd2 {[%clk 0:02:48]}  Nf6 {[%clk 0:02:53]} 6. e3 {[%clk 0:02:47]}  g6 {[%clk 0:02:53]} 7. Be2 {[%clk 0:02:43]}  Bg7 {[%clk 0:02:53]} 8. b4 {[%clk 0:02:43]}  O-O {[%clk 0:02:53]} 9. Bb2 {[%clk 0:02:42]}  c6 {[%clk 0:02:51]} 10. Qb3 {[%clk 0:02:40]}  d5 {[%clk 0:02:45]} 11. a4 {[%clk 0:02:39]}  Be6 {[%clk 0:02:42]} 12. b5 {[%clk 0:02:30]}  Nbd7 {[%clk 0:02:34]} 13. Ba3 {[%clk 0:02:19]}  Rf7 {[%clk 0:02:34]} 14. Bd6 {[%clk 0:02:13]}  g5 {[%clk 0:01:57]} 15. h4 {[%clk 0:02:05]}  gxh4 {[%clk 0:01:56]} 16. Rxh4 {[%clk 0:01:53]}  Ne8 {[%clk 0:01:56]} 17. Bg3 {[%clk 0:01:53]}  Ndf6 {[%clk 0:01:42]} 18. c5 {[%clk 0:01:32]}  b6 {[%clk 0:01:26]} 19. O-O-O {[%clk 0:01:09]}  bxc5 {[%clk 0:01:17]} 20. dxc5 {[%clk 0:01:10]}  cxb5 {[%clk 0:01:16]} 21. axb5 {[%clk 0:01:06]}  Qc8 {[%clk 0:01:16]} 22. c6 {[%clk 0:00:52]}  d4 {[%clk 0:01:14]} 23. Bc4 {[%clk 0:00:50]}  Bxc4 {[%clk 0:01:13]} 24. Nxc4 {[%clk 0:00:50]}  dxc3 {[%clk 0:01:13]} 25. Ne5 {[%clk 0:00:50]}  Qc7 {[%clk 0:00:48]} 26. Rd7 {[%clk 0:00:47]}  Nxd7 {[%clk 0:00:37]} 27. Qxf7+ {[%clk 0:00:47]}  Kh8 {[%clk 0:00:37]} 28. Ng6# {[%clk 0:00:47]} 1-0


[Site "https://www.chess.com"]

[Event "Titled Tuesday Blitz January 25 2022"]
[White "Rastbod, Ali"]
[Black "Svane, Frederik"]
[WhiteFideId "12567477"]
[BlackFideId "12923044"]
[WhiteElo "2200"]
[BlackElo "2459"]
[Result "0-1"]
[Round "05"]
[TimeControl "180+1"]
[Date "2022.01.26"]
[WhiteClock "0:00:07"]
[BlackClock "0:00:09"]

1. c4 {[%clk 0:03:00]}  e6 {[%clk 0:02:59]} 2. Nf3 {[%clk 0:02:59]}  Nf6 {[%clk 0:02:59]} 3. g3 {[%clk 0:02:59]}  d5 {[%clk 0:02:58]} 4. Bg2 {[%clk 0:02:59]}  Be7 {[%clk 0:02:53]} 5. O-O {[%clk 0:02:59]}  O-O {[%clk 0:02:53]} 6. b3 {[%clk 0:03:00]}  d4 {[%clk 0:02:43]} 7. e3 {[%clk 0:02:59]}  c5 {[%clk 0:02:43]} 8. exd4 {[%clk 0:02:59]}  cxd4 {[%clk 0:02:44]} 9. d3 {[%clk 0:02:49]}  Nc6 {[%clk 0:02:44]} 10. Re1 {[%clk 0:02:49]}  Nd7 {[%clk 0:02:41]} 11. Na3 {[%clk 0:02:31]}  e5 {[%clk 0:02:00]} 12. Nc2 {[%clk 0:02:28]}  Re8 {[%clk 0:01:55]} 13. a3 {[%clk 0:02:25]}  a5 {[%clk 0:01:47]} 14. Rb1 {[%clk 0:02:23]}  Bf8 {[%clk 0:01:10]} 15. b4 {[%clk 0:02:18]}  axb4 {[%clk 0:00:36]} 16. axb4 {[%clk 0:02:19]}  f6 {[%clk 0:00:36]} 17. Nh4 {[%clk 0:02:12]}  Nb6 {[%clk 0:00:25]} 18. b5 {[%clk 0:01:53]}  Ne7 {[%clk 0:00:22]} 19. Nb4 {[%clk 0:01:46]}  Na4 {[%clk 0:00:18]} 20. Bd2 {[%clk 0:01:47]}  Nc5 {[%clk 0:00:18]} 21. f4 {[%clk 0:01:16]}  exf4 {[%clk 0:00:16]} 22. gxf4 {[%clk 0:01:17]}  Nf5 {[%clk 0:00:10]} 23. Bd5+ {[%clk 0:00:59]}  Kh8 {[%clk 0:00:11]} 24. Nxf5 {[%clk 0:00:51]}  Bxf5 {[%clk 0:00:09]} 25. Qf3 {[%clk 0:00:49]}  Qd7 {[%clk 0:00:06]} 26. Rxe8 {[%clk 0:00:37]}  Rxe8 {[%clk 0:00:07]} 27. Re1 {[%clk 0:00:37]}  Ra8 {[%clk 0:00:02]} 28. Rf1 {[%clk 0:00:22]}  Ra3 {[%clk 0:00:02]} 29. Qh5 {[%clk 0:00:12]}  Bg6 {[%clk 0:00:02]} 30. Qh4 {[%clk 0:00:07]}  Nxd3 {[%clk 0:00:03]} 31. Nxd3 {[%clk 0:00:07]}  Rxd3 {[%clk 0:00:03]} 32. Be1 {[%clk 0:00:07]}  Re3 {[%clk 0:00:03]} 33. Bf2 {[%clk 0:00:05]}  Bc5 {[%clk 0:00:03]} 34. Bxe3 {[%clk 0:00:05]}  dxe3 {[%clk 0:00:04]} 35. Kh1 {[%clk 0:00:05]}  e2 {[%clk 0:00:04]} 36. Re1 {[%clk 0:00:05]}  Bd3 {[%clk 0:00:05]} 37. Qg3 {[%clk 0:00:03]}  Qf5 {[%clk 0:00:04]} 38. Qg2 {[%clk 0:00:03]}  h5 {[%clk 0:00:04]} 39. Bxb7 {[%clk 0:00:03]}  h4 {[%clk 0:00:04]} 40. Bf3 {[%clk 0:00:03]}  h3 {[%clk 0:00:04]} 41. Qg3 {[%clk 0:00:04]}  Kg8 {[%clk 0:00:04]} 42. Bd5+ {[%clk 0:00:04]}  Kf8 {[%clk 0:00:04]} 43. Qf3 {[%clk 0:00:04]}  Bb4 {[%clk 0:00:03]} 44. Rc1 {[%clk 0:00:02]}  e1=Q+ {[%clk 0:00:03]} 45. Rxe1 {[%clk 0:00:03]}  Bxe1 {[%clk 0:00:04]} 46. Qe3 {[%clk 0:00:03]}  Qg4 {[%clk 0:00:02]} 47. Qc5+ {[%clk 0:00:03]}  Ke8 {[%clk 0:00:02]} 48. Qc6+ {[%clk 0:00:03]}  Qd7 {[%clk 0:00:01]} 49. Bf7+ {[%clk 0:00:02]}  Kd8 {[%clk 0:00:01]} 50. Qxd7+ {[%clk 0:00:02]}  Kxd7 {[%clk 0:00:02]} 51. Bd5 {[%clk 0:00:02]}  Bf2 {[%clk 0:00:02]} 52. b6 {[%clk 0:00:01]}  Bxb6 {[%clk 0:00:02]} 53. f5 {[%clk 0:00:02]}  Bxf5 {[%clk 0:00:03]} 54. Bf3 {[%clk 0:00:03]}  Be6 {[%clk 0:00:03]} 55. c5 {[%clk 0:00:03]}  Bxc5 {[%clk 0:00:03]} 56. Bg4 {[%clk 0:00:04]}  Bd6 {[%clk 0:00:04]} 57. Bxh3 {[%clk 0:00:05]}  Ke7 {[%clk 0:00:04]} 58. Bg2 {[%clk 0:00:05]}  Be5 {[%clk 0:00:04]} 59. Bf3 {[%clk 0:00:05]}  Kd6 {[%clk 0:00:05]} 60. Kg1 {[%clk 0:00:05]}  Bd5 {[%clk 0:00:06]} 61. Be2 {[%clk 0:00:06]}  Bd4+ {[%clk 0:00:06]} 62. Kf1 {[%clk 0:00:06]}  Ke5 {[%clk 0:00:07]} 63. h4 {[%clk 0:00:07]}  Kf4 {[%clk 0:00:07]} 64. h5 {[%clk 0:00:07]}  Bf3 {[%clk 0:00:08]} 65. Bxf3 {[%clk 0:00:06]}  Kxf3 {[%clk 0:00:09]} 66. h6 {[%clk 0:00:07]}  gxh6 {[%clk 0:00:09]} 0-1


[Site "https://www.chess.com"]

[Event "Titled Tuesday Blitz January 25 2022"]
[White "Ruperez Benito, Antonio"]
[Black "Yurovskykh, Oleksandr"]
[WhiteFideId "22245049"]
[BlackFideId "14134020"]
[WhiteElo "2249"]
[BlackElo "2292"]
[Result "1-0"]
[Round "05"]
[TimeControl "180+1"]
[Date "2022.01.26"]
[WhiteClock "0:00:24"]
[BlackClock "0:00:07"]

1. d4 {[%clk 0:03:00]}  d5 {[%clk 0:02:53]} 2. c4 {[%clk 0:03:01]}  dxc4 {[%clk 0:02:53]} 3. e4 {[%clk 0:03:01]}  Nf6 {[%clk 0:02:52]} 4. Nc3 {[%clk 0:02:52]}  e5 {[%clk 0:02:52]} 5. Bxc4 {[%clk 0:02:28]}  Qxd4 {[%clk 0:02:21]} 6. Qxd4 {[%clk 0:01:55]}  exd4 {[%clk 0:02:20]} 7. Nb5 {[%clk 0:01:56]}  Na6 {[%clk 0:02:04]} 8. e5 {[%clk 0:01:50]}  Ne4 {[%clk 0:01:48]} 9. Nxd4 {[%clk 0:01:43]}  Bb4+ {[%clk 0:01:40]} 10. Ke2 {[%clk 0:01:41]}  Bc5 {[%clk 0:01:40]} 11. Be3 {[%clk 0:01:39]}  Bb6 {[%clk 0:01:19]} 12. Ngf3 {[%clk 0:01:32]}  O-O {[%clk 0:01:19]} 13. a3 {[%clk 0:01:24]}  Bg4 {[%clk 0:01:17]} 14. h3 {[%clk 0:01:18]}  Bh5 {[%clk 0:01:16]} 15. g4 {[%clk 0:01:05]}  Bg6 {[%clk 0:01:15]} 16. h4 {[%clk 0:01:00]}  h5 {[%clk 0:01:14]} 17. Rhg1 {[%clk 0:00:57]}  Rae8 {[%clk 0:00:42]} 18. e6 {[%clk 0:00:55]}  fxe6 {[%clk 0:00:33]} 19. Nxe6 {[%clk 0:00:54]}  Rxe6 {[%clk 0:00:25]} 20. Bxe6+ {[%clk 0:00:53]}  Kh8 {[%clk 0:00:26]} 21. Bf5 {[%clk 0:00:35]}  Bxf5 {[%clk 0:00:24]} 22. gxf5 {[%clk 0:00:36]}  Rxf5 {[%clk 0:00:23]} 23. Rad1 {[%clk 0:00:35]}  Nac5 {[%clk 0:00:20]} 24. Rd8+ {[%clk 0:00:35]}  Kh7 {[%clk 0:00:20]} 25. Ng5+ {[%clk 0:00:31]}  Nxg5 {[%clk 0:00:21]} 26. Rxg5 {[%clk 0:00:31]}  Rxg5 {[%clk 0:00:20]} 27. hxg5 {[%clk 0:00:31]}  Ne6 {[%clk 0:00:16]} 28. Re8 {[%clk 0:00:30]}  Bxe3 {[%clk 0:00:14]} 29. Kxe3 {[%clk 0:00:27]}  Nxg5 {[%clk 0:00:15]} 30. Re7 {[%clk 0:00:27]}  h4 {[%clk 0:00:12]} 31. f4 {[%clk 0:00:26]}  h3 {[%clk 0:00:11]} 32. Kf2 {[%clk 0:00:25]}  h2 {[%clk 0:00:10]} 33. Kg2 {[%clk 0:00:25]}  Nh3 {[%clk 0:00:10]} 34. Kxh2 {[%clk 0:00:24]}  Nxf4 {[%clk 0:00:11]} 35. Rxc7 {[%clk 0:00:25]}  b5 {[%clk 0:00:09]} 36. Rxa7 {[%clk 0:00:25]}  Nd3 {[%clk 0:00:09]} 37. b3 {[%clk 0:00:25]}  Kg6 {[%clk 0:00:07]} 38. Rb7 {[%clk 0:00:25]}  b4 {[%clk 0:00:04]} 39. a4 {[%clk 0:00:25]}  Kf6 {[%clk 0:00:03]} 40. a5 {[%clk 0:00:25]}  Ke5 {[%clk 0:00:04]} 41. a6 {[%clk 0:00:26]}  Nc5 {[%clk 0:00:04]} 42. a7 {[%clk 0:00:26]}  Nxb7 {[%clk 0:00:05]} 43. a8=Q {[%clk 0:00:27]}  Nc5 {[%clk 0:00:06]} 44. Qc6 {[%clk 0:00:26]}  Kd4 {[%clk 0:00:07]} 45. Qd6+ {[%clk 0:00:26]}  Kc3 {[%clk 0:00:05]} 46. Qxc5+ {[%clk 0:00:26]}  Kxb3 {[%clk 0:00:05]} 47. Qd5+ {[%clk 0:00:27]}  Kc3 {[%clk 0:00:05]} 48. Qe5+ {[%clk 0:00:27]}  Kc2 {[%clk 0:00:05]} 49. Qxg7 {[%clk 0:00:27]}  b3 {[%clk 0:00:06]} 50. Qg2+ {[%clk 0:00:27]}  Kc1 {[%clk 0:00:06]} 51. Qf1+ {[%clk 0:00:28]}  Kc2 {[%clk 0:00:07]} 52. Qe2+ {[%clk 0:00:29]}  Kc1 {[%clk 0:00:08]} 53. Qc4+ {[%clk 0:00:29]}  Kb2 {[%clk 0:00:08]} 54. Kg2 {[%clk 0:00:29]}  Ka1 {[%clk 0:00:08]} 55. Qa4+ {[%clk 0:00:28]}  Kb2 {[%clk 0:00:07]} 56. Kf2 {[%clk 0:00:29]}  Kc3 {[%clk 0:00:07]} 57. Qc6+ {[%clk 0:00:28]}  Kd2 {[%clk 0:00:07]} 58. Qd5+ {[%clk 0:00:27]}  Kc2 {[%clk 0:00:07]} 59. Qc4+ {[%clk 0:00:27]}  Kb2 {[%clk 0:00:04]} 60. Ke2 {[%clk 0:00:26]}  Ka1 {[%clk 0:00:04]} 61. Qa4+ {[%clk 0:00:26]}  Kb2 {[%clk 0:00:05]} 62. Kd2 {[%clk 0:00:26]}  Kb1 {[%clk 0:00:05]} 63. Qxb3+ {[%clk 0:00:26]}  Ka1 {[%clk 0:00:06]} 64. Qb4 {[%clk 0:00:23]}  Ka2 {[%clk 0:00:07]} 65. Kc2 {[%clk 0:00:24]}  Ka1 {[%clk 0:00:07]} 66. Qa3# {[%clk 0:00:24]} 1-0


[Site "https://www.chess.com"]

[Event "Titled Tuesday Blitz January 25 2022"]
[White "Sadovsky, Artem"]
[Black "Pultinevicius, Paulius"]
[WhiteFideId "4155840"]
[BlackFideId "12809390"]
[WhiteElo "2369"]
[BlackElo "2413"]
[Result "1-0"]
[Round "05"]
[TimeControl "180+1"]
[Date "2022.01.26"]
[WhiteClock "0:00:13"]
[BlackClock "0:00:04"]

1. Nf3 {[%clk 0:03:00]}  Nf6 {[%clk 0:02:58]} 2. b3 {[%clk 0:02:56]}  g6 {[%clk 0:02:58]} 3. Bb2 {[%clk 0:02:56]}  Bg7 {[%clk 0:02:59]} 4. c4 {[%clk 0:02:57]}  O-O {[%clk 0:03:00]} 5. e3 {[%clk 0:02:57]}  c5 {[%clk 0:03:00]} 6. Be2 {[%clk 0:02:58]}  Nc6 {[%clk 0:03:01]} 7. O-O {[%clk 0:02:58]}  e6 {[%clk 0:03:02]} 8. d4 {[%clk 0:02:59]}  cxd4 {[%clk 0:03:02]} 9. Nxd4 {[%clk 0:02:59]}  d5 {[%clk 0:03:01]} 10. Nxc6 {[%clk 0:02:54]}  bxc6 {[%clk 0:03:02]} 11. Nd2 {[%clk 0:02:54]}  a5 {[%clk 0:03:01]} 12. Qc2 {[%clk 0:02:42]}  Ba6 {[%clk 0:02:58]} 13. Rfd1 {[%clk 0:02:42]}  Rc8 {[%clk 0:02:53]} 14. e4 {[%clk 0:02:42]}  Qc7 {[%clk 0:02:52]} 15. Rac1 {[%clk 0:02:19]}  Rfd8 {[%clk 0:02:52]} 16. exd5 {[%clk 0:02:03]}  cxd5 {[%clk 0:02:50]} 17. Bf3 {[%clk 0:02:02]}  e5 {[%clk 0:02:47]} 18. Qb1 {[%clk 0:01:13]}  e4 {[%clk 0:02:44]} 19. Qa1 {[%clk 0:01:13]}  exf3 {[%clk 0:02:15]} 20. Bxf6 {[%clk 0:01:12]}  Bxf6 {[%clk 0:02:14]} 21. Qxf6 {[%clk 0:01:12]}  fxg2 {[%clk 0:02:15]} 22. Qxa6 {[%clk 0:01:12]}  Qf4 {[%clk 0:02:09]} 23. c5 {[%clk 0:01:01]}  Re8 {[%clk 0:02:03]} 24. Qd3 {[%clk 0:00:59]}  Rc6 {[%clk 0:01:36]} 25. Nf3 {[%clk 0:00:51]}  Rf6 {[%clk 0:01:34]} 26. c6 {[%clk 0:00:43]}  Rc8 {[%clk 0:01:02]} 27. Qxd5 {[%clk 0:00:42]}  Kg7 {[%clk 0:00:32]} 28. c7 {[%clk 0:00:41]}  Rxc7 {[%clk 0:00:29]} 29. Rxc7 {[%clk 0:00:42]}  Qxc7 {[%clk 0:00:30]} 30. Qe5 {[%clk 0:00:38]}  Qc6 {[%clk 0:00:18]} 31. Rd3 {[%clk 0:00:13]}  h6 {[%clk 0:00:07]} 32. Nd4 {[%clk 0:00:09]}  Qb6 {[%clk 0:00:05]} 33. Rf3 {[%clk 0:00:08]}  g5 {[%clk 0:00:03]} 34. Qxf6+ {[%clk 0:00:08]}  Qxf6 {[%clk 0:00:04]} 35. Rxf6 {[%clk 0:00:09]}  Kxf6 {[%clk 0:00:05]} 36. Kxg2 {[%clk 0:00:09]}  g4 {[%clk 0:00:03]} 37. Nc6 {[%clk 0:00:10]}  Ke6 {[%clk 0:00:02]} 38. Nxa5 {[%clk 0:00:10]}  Kd5 {[%clk 0:00:03]} 39. Nc4 {[%clk 0:00:11]}  h5 {[%clk 0:00:04]} 40. Ne3+ {[%clk 0:00:11]}  Ke4 {[%clk 0:00:04]} 41. Kg3 {[%clk 0:00:12]}  f5 {[%clk 0:00:05]} 42. Kg2 {[%clk 0:00:12]}  f4 {[%clk 0:00:05]} 43. Nxg4 {[%clk 0:00:12]}  hxg4 {[%clk 0:00:06]} 44. b4 {[%clk 0:00:10]}  Kd4 {[%clk 0:00:06]} 45. b5 {[%clk 0:00:10]}  Kc5 {[%clk 0:00:06]} 46. a4 {[%clk 0:00:11]}  Kb6 {[%clk 0:00:07]} 47. f3 {[%clk 0:00:11]}  gxf3+ {[%clk 0:00:02]} 48. Kxf3 {[%clk 0:00:12]}  Ka5 {[%clk 0:00:02]} 49. Kxf4 {[%clk 0:00:12]}  Kxa4 {[%clk 0:00:03]} 50. b6 {[%clk 0:00:12]}  Ka5 {[%clk 0:00:04]} 51. b7 {[%clk 0:00:13]} 1-0


[Site "https://www.chess.com"]

[Event "Titled Tuesday Blitz January 25 2022"]
[White "Sadykov, Ramil"]
[Black "Martinez Ramirez, Lennis"]
[WhiteFideId "24113590"]
[BlackFideId "3509079"]
[WhiteElo "2300"]
[BlackElo "2374"]
[Result "0-1"]
[Round "05"]
[TimeControl "180+1"]
[Date "2022.01.26"]
[WhiteClock "0:00:05"]
[BlackClock "0:00:09"]

1. e4 {[%clk 0:03:00]}  c5 {[%clk 0:02:59]} 2. Nc3 {[%clk 0:03:01]}  Nc6 {[%clk 0:02:59]} 3. g3 {[%clk 0:02:59]}  g6 {[%clk 0:02:59]} 4. Bg2 {[%clk 0:03:00]}  Bg7 {[%clk 0:03:00]} 5. d3 {[%clk 0:03:00]}  e6 {[%clk 0:02:59]} 6. Be3 {[%clk 0:03:00]}  Nd4 {[%clk 0:02:58]} 7. Qd2 {[%clk 0:02:59]}  Rb8 {[%clk 0:02:56]} 8. Nd1 {[%clk 0:02:59]}  d6 {[%clk 0:02:55]} 9. c3 {[%clk 0:02:59]}  Nc6 {[%clk 0:02:55]} 10. Ne2 {[%clk 0:02:51]}  b5 {[%clk 0:02:54]} 11. a3 {[%clk 0:02:52]}  Bb7 {[%clk 0:02:52]} 12. O-O {[%clk 0:02:51]}  Ne5 {[%clk 0:02:41]} 13. h3 {[%clk 0:02:46]}  h5 {[%clk 0:02:39]} 14. f4 {[%clk 0:02:44]}  Nd7 {[%clk 0:02:38]} 15. b4 {[%clk 0:02:40]}  Ne7 {[%clk 0:02:28]} 16. Rb1 {[%clk 0:02:31]}  Ba8 {[%clk 0:02:24]} 17. d4 {[%clk 0:02:21]}  cxd4 {[%clk 0:02:17]} 18. Bxd4 {[%clk 0:02:18]}  e5 {[%clk 0:02:16]} 19. Bxa7 {[%clk 0:02:16]}  Rb7 {[%clk 0:02:16]} 20. Be3 {[%clk 0:02:15]}  Nb6 {[%clk 0:02:04]} 21. Nb2 {[%clk 0:02:11]}  exf4 {[%clk 0:01:54]} 22. Bd4 {[%clk 0:02:04]}  Bxd4+ {[%clk 0:01:35]} 23. Qxd4 {[%clk 0:02:00]}  O-O {[%clk 0:01:35]} 24. gxf4 {[%clk 0:01:56]}  Ra7 {[%clk 0:01:34]} 25. a4 {[%clk 0:01:29]}  bxa4 {[%clk 0:01:29]} 26. Nc4 {[%clk 0:01:29]}  Nxc4 {[%clk 0:01:19]} 27. Qxa7 {[%clk 0:01:28]}  Nd2 {[%clk 0:01:18]} 28. Rbd1 {[%clk 0:01:25]}  Nxe4 {[%clk 0:01:18]} 29. Qxa4 {[%clk 0:00:31]}  Qb6+ {[%clk 0:01:16]} 30. Kh2 {[%clk 0:00:25]}  Nf5 {[%clk 0:01:15]} 31. Qa5 {[%clk 0:00:24]}  Qe3 {[%clk 0:01:15]} 32. Qb5 {[%clk 0:00:18]}  Nxc3 {[%clk 0:01:02]} 33. Qd3 {[%clk 0:00:18]}  Qxd3 {[%clk 0:01:02]} 34. Rxd3 {[%clk 0:00:19]}  Nxe2 {[%clk 0:01:02]} 35. Bxa8 {[%clk 0:00:19]}  Rxa8 {[%clk 0:01:02]} 36. b5 {[%clk 0:00:16]}  Rb8 {[%clk 0:01:00]} 37. Rb1 {[%clk 0:00:14]}  Rb6 {[%clk 0:01:00]} 38. Rb4 {[%clk 0:00:13]}  h4 {[%clk 0:00:50]} 39. Kg2 {[%clk 0:00:13]}  Kf8 {[%clk 0:00:41]} 40. Kf2 {[%clk 0:00:13]}  Neg3 {[%clk 0:00:21]} 41. Kf3 {[%clk 0:00:13]}  Ke7 {[%clk 0:00:20]} 42. Ra3 {[%clk 0:00:13]}  Rxb5 {[%clk 0:00:17]} 43. Ra7+ {[%clk 0:00:08]}  Kf6 {[%clk 0:00:17]} 44. Rxb5 {[%clk 0:00:05]}  Nd4+ {[%clk 0:00:17]} 45. Kg4 {[%clk 0:00:06]}  Nxb5 {[%clk 0:00:18]} 46. Rb7 {[%clk 0:00:05]}  Nd4 {[%clk 0:00:18]} 47. Kxh4 {[%clk 0:00:05]}  Ne4 {[%clk 0:00:13]} 48. Kg4 {[%clk 0:00:05]}  Nf5 {[%clk 0:00:09]} 49. Rb6 {[%clk 0:00:04]}  Ke6 {[%clk 0:00:09]} 50. Ra6 {[%clk 0:00:04]}  Nc5 {[%clk 0:00:08]} 51. Ra8 {[%clk 0:00:03]}  Nd7 {[%clk 0:00:08]} 52. Kg5 {[%clk 0:00:04]}  Ke7 {[%clk 0:00:07]} 53. Ra7 {[%clk 0:00:04]}  Nd4 {[%clk 0:00:07]} 54. Ra1 {[%clk 0:00:03]}  Ne6+ {[%clk 0:00:06]} 55. Kg4 {[%clk 0:00:03]}  d5 {[%clk 0:00:07]} 56. Ra6 {[%clk 0:00:02]}  Nf6+ {[%clk 0:00:07]} 57. Kf3 {[%clk 0:00:03]}  d4 {[%clk 0:00:07]} 58. h4 {[%clk 0:00:02]}  Nd5 {[%clk 0:00:08]} 59. Ke4 {[%clk 0:00:01]}  Ndxf4 {[%clk 0:00:08]} 60. Ke5 {[%clk 0:00:02]}  Kf8 {[%clk 0:00:07]} 61. Ra7 {[%clk 0:00:03]}  Kg7 {[%clk 0:00:07]} 62. Ke4 {[%clk 0:00:02]}  Ng2 {[%clk 0:00:07]} 63. Ra6 {[%clk 0:00:01]}  Nxh4 {[%clk 0:00:07]} 64. Ra5 {[%clk 0:00:01]}  Nf5 {[%clk 0:00:08]} 65. Kd3 {[%clk 0:00:02]}  Ne7 {[%clk 0:00:08]} 66. Ra4 {[%clk 0:00:03]}  Nc6 {[%clk 0:00:08]} 67. Ra6 {[%clk 0:00:04]}  Nc5+ {[%clk 0:00:08]} 68. Kc4 {[%clk 0:00:05]}  Nxa6 {[%clk 0:00:09]} 0-1


[Site "https://www.chess.com"]